fUST/lending_fUST_20250101
["ID","MTS","AMOUNT","RATE_DAILY","PERIOD"]
[347324814,1735690244159,-500.0,0.00019178,2]
[347324815,1735690244169,-500.0,0.00019178,2]
[347324816,1735690244178,-500.0,0.00019178,2]
[347324817,1735690244188,-500.0,0.00019178,2]
[347324818,1735690244197,-500.0,0.00019178,2]
[347324819,1735690244206,-500.0,0.00019178,2]
[347324820,1735690244215,-500.0,0.00019178,2]
[347324821,1735690244228,-609.82039449,0.00019178,2]
[347324822,1735690244237,-500.0,0.00019178,2]
[347324823,1735690244246,-169.592575,0.00019178,2]
[347324824,1735690244256,-501.61156438,0.00019178,2]
[347324825,1735690244265,-169.592575,0.00019178,2]
[347324826,1735690244274,-169.592575,0.00019178,2]
[347324827,1735690244284,-169.592575,0.00019178,2]
[347324828,1735690244293,-169.592575,0.00019178,2]
[347324829,1735690244302,-500.0,0.00019178,2]
[347324830,1735690244312,-169.592575,0.00019178,2]
[347324831,1735690244321,-169.592575,0.00019178,2]
[347324832,1735690244332,-169.592575,0.00019178,2]
[347324833,1735690244344,-169.592575,0.00019178,2]
[347324834,1735690244356,-151.0,0.00019178,2]
[347324835,1735690244368,-151.0,0.00019178,2]
[347324836,1735690244464,-169.59258,0.00019178,2]
[347324837,1735690244475,-500.0,0.00019178,2]
[347324838,1735690244485,-500.0,0.00019178,2]
[347324839,1735690244494,-500.0,0.00019178,2]
[347324840,1735690244504,-500.0,0.00019178,2]
[347324841,1735690244514,-500.0,0.00019178,2]
[347324842,1735690244523,-500.0,0.00019178,2]
[347324843,1735690244533,-500.0,0.00019178,2]
[347324844,1735690244542,-500.0,0.00019178,2]
[347324845,1735690244551,-1142.69,0.00019178,2]
[347324846,1735690244561,-227.48740892,0.00019178,2]
[347324847,1735690244570,-500.0,0.00019178,2]
[347324848,1735690244580,-500.0,0.00019178,2]
[347324849,1735690244589,-150.2,0.00019178,2]
[347324850,1735690244599,-150.2,0.00019178,2]
[347324851,1735690244611,-500.0,0.00019178,2]
[347324852,1735690244620,-521.87272712,0.00019178,2]
[347324853,1735690244630,-150.28791376,0.00019178,2]
[347324854,1735690244640,-431.13986091,0.00019178,2]
[347324855,1735690244650,-500.0,0.00019178,2]
[347324856,1735690244659,-500.0,0.00019178,2]
[347324857,1735690244669,-480.10127614,0.00019178,2]
[347324858,1735690244897,-19.89872386,0.00019178,2]
[347324859,1735690244906,-500.0,0.00019178,2]
[347324860,1735690244916,-161.91519776,0.00019178,2]
[347324861,1735690244925,-195.07416355,0.00019178,2]
[347324862,1735690245008,-498.56583645,0.00019178,2]
[347324863,1735690245018,-151.0,0.00019178,2]
[347324864,1735690245027,-500.0,0.00019178,2]
[347324865,1735690245038,-502.5410955,0.00019178,2]
[347324866,1735690245047,-504.76654028,0.00019178,2]
[347324867,1735690245057,-1016.65,0.00019178,2]
[347324868,1735690245066,-509.68267112,0.00019178,2]
[347324869,1735690245078,-500.0,0.00019178,2]
[347324870,1735690245088,-500.0,0.00019178,2]
[347324871,1735690245098,-634.98,0.00019178,2]
[347324872,1735690245106,-1134.71,0.00019178,2]
[347324873,1735690245115,-162.78630853,0.00019178,2]
[347324874,1735690245125,-500.0,0.00019178,2]
[347324875,1735690245134,-506.53766045,0.00019178,2]
[347324876,1735690245143,-713.17,0.00019178,2]
[347324877,1735690245153,-65.70196118,0.00019178,2]
[347324885,1735690245899,-449.38803882,0.00019178,2]
[347324886,1735690245908,-1492.45,0.00019178,2]
[347324887,1735690245918,-505.55059981,0.00019178,2]
[347324888,1735690245928,-387.75910216,0.00019178,2]
[347324889,1735690245937,-500.0,0.00019178,2]
[347324890,1735690245947,-150.2,0.00019178,2]
[347324891,1735690245957,-815.8,0.00019178,2]
[347324892,1735690245967,-203.43496703,0.00019178,2]
[347324893,1735690245977,-159.4091673,0.00019178,2]
[347324894,1735690245986,-500.0,0.00019178,2]
[347324895,1735690245996,-150.21,0.00019178,2]
[347324896,1735690246008,-416.53211815,0.00019178,2]
[347324897,1735690246017,-500.0,0.00019178,2]
[347324898,1735690246027,-500.0,0.00019178,2]
[347324899,1735690246036,-753.22,0.00019178,2]
[347324900,1735690246046,-1405.14,0.00019178,2]
[347324901,1735690246055,-394.40039,0.00019178,2]
[347324902,1735690246065,-394.40039,0.00019178,2]
[347324903,1735690246075,-394.40039,0.00019178,2]
[347324904,1735690246084,-394.40039,0.00019178,2]
[347324905,1735690246093,-500.0,0.00019178,2]
[347324906,1735690246102,-394.40039,0.00019178,2]
[347324908,1735690246112,-500.0,0.00019178,2]
[347324909,1735690246121,-500.0,0.00019178,2]
[347324911,1735690246130,-394.40039,0.00019178,2]
[347324913,1735690246140,-394.40039,0.00019178,2]
[347324914,1735690246150,-394.40039,0.00019178,2]
[347324916,1735690246160,-761.61,0.00019178,2]
[347324918,1735690246169,-394.40039,0.00019178,2]
[347324920,1735690246178,-394.400381,0.00019178,2]
[347324922,1735690246188,-500.0,0.00019178,2]
[347324924,1735690246197,-500.0,0.00019178,2]
[347324926,1735690246207,-500.0,0.00019178,2]
[347324928,1735690246216,-500.0,0.00019178,2]
[347324930,1735690246226,-500.0,0.00019178,2]
[347324932,1735690246235,-500.0,0.00019178,2]
[347324934,1735690246244,-500.0,0.00019178,2]
[347324936,1735690246253,-1478.61,0.00019178,2]
[347324938,1735690246262,-219.27100576,0.00019178,2]
[347324940,1735690246271,-500.0,0.00019178,2]
[347324942,1735690246281,-648.51860179,0.00019178,2]
[347324944,1735690246290,-547.8,0.00019178,2]
[347324946,1735690246299,-547.8,0.00019178,2]
[347324948,1735690246308,-547.8,0.00019178,2]
[347324950,1735690246317,-547.8,0.00019178,2]
[347324951,1735690246326,-547.8,0.00019178,2]
[347324952,1735690246337,-547.8,0.00019178,2]
[347324953,1735690246346,-547.8,0.00019178,2]
[347324954,1735690246355,-547.8,0.00019178,2]
[347324955,1735690246364,-500.0,0.00019178,2]
[347324956,1735690246374,-547.8,0.00019178,2]
[347324957,1735690246383,-547.8,0.00019178,2]
[347324959,1735690246392,-547.8,0.00019178,2]
[347324961,1735690246401,-547.8,0.00019178,2]
[347324963,1735690246410,-547.8,0.00019178,2]
[347324965,1735690246419,-547.8,0.00019178,2]
[347324967,1735690246430,-547.8,0.00019178,2]
[347324968,1735690246439,-547.8,0.00019178,2]
[347324969,1735690246448,-500.0,0.00019178,2]
[347324970,1735690246458,-547.8,0.00019178,2]
[347324971,1735690246468,-500.0,0.00019178,2]
[347324972,1735690246478,-547.8,0.00019178,2]
[347324973,1735690246487,-547.8,0.00019178,2]
[347324974,1735690246496,-500.0,0.00019178,2]
[347324975,1735690246506,-547.8,0.00019178,2]
[347324976,1735690246515,-547.8,0.00019178,2]
[347324977,1735690246525,-547.8,0.00019178,2]
[347324978,1735690246534,-547.8,0.00019178,2]
[347324979,1735690246544,-547.88,0.00019178,2]
[347324980,1735690246554,-500.0,0.00019178,2]
[347324981,1735690246563,-680.5,0.00019178,2]
[347324982,1735690246572,-500.0,0.00019178,2]
[347324983,1735690246580,-567.44,0.00019178,2]
[347324984,1735690246590,-799.14,0.00019178,2]
[347324985,1735690246599,-500.0,0.00019178,2]
[347324986,1735690246608,-500.0,0.00019178,2]
[347324987,1735690246713,-500.0,0.00019178,2]
[347324988,1735690246722,-668.43,0.00019178,2]
[347324989,1735690246732,-500.0,0.00019178,2]
[347324990,1735690246741,-500.0,0.00019178,2]
[347324991,1735690246750,-605.62619593,0.00019178,2]
[347324992,1735690246760,-500.0,0.00019178,2]
[347324993,1735690246769,-500.0,0.00019178,2]
[347324994,1735690246778,-500.0,0.00019178,2]
[347324995,1735690246787,-505.53260887,0.00019178,2]
[347324996,1735690246796,-2815.55,0.00019178,2]
[347324997,1735690246805,-507.06642463,0.00019178,2]
[347324998,1735690246815,-500.0,0.00019178,2]
[347324999,1735690246824,-150.2,0.00019178,2]
[347325000,1735690246833,-9794.84,0.00019178,2]
[347325001,1735690246843,-151.0,0.00019178,2]
[347325002,1735690246852,-150.2,0.00019178,2]
[347325003,1735690246861,-151.0,0.00019178,2]
[347325004,1735690246871,-150.21,0.00019178,2]
[347325005,1735690246880,-151.0,0.00019178,2]
[347325006,1735690246890,-151.0,0.00019178,2]
[347325007,1735690246899,-151.0,0.00019178,2]
[347325008,1735690246908,-500.0,0.00019178,2]
[347325009,1735690246918,-265.19709363,0.00019178,2]
[347325010,1735690246927,-758.32,0.00019178,2]
[347325011,1735690246936,-251.74399228,0.00019178,2]
[347325012,1735690246945,-1156.64,0.00019178,2]
[347325013,1735690246954,-500.0,0.00019178,2]
[347325014,1735690246963,-500.0,0.00019178,2]
[347325015,1735690246973,-500.0,0.00019178,2]
[347325016,1735690246983,-500.0,0.00019178,2]
[347325017,1735690246993,-500.0,0.00019178,2]
[347325018,1735690247008,-150.2,0.00019178,2]
[347325019,1735690247018,-131.23305241,0.00019178,2]
[347325020,1735690247035,-368.76694759,0.00019178,2]
[347325021,1735690247044,-500.0,0.00019178,2]
[347325022,1735690247054,-25.47590941,0.00019178,2]
[347325023,1735690247065,-124.76409059,0.00019178,2]
[347325024,1735690247075,-982.65,0.00019178,2]
[347325025,1735690247084,-627.26,0.00019178,2]
[347325026,1735690247094,-502.55843687,0.00019178,2]
[347325027,1735690247104,-8850.11,0.00019178,2]
[347325028,1735690247113,-500.0,0.00019178,2]
[347325029,1735690247122,-500.0,0.00019178,2]
[347325030,1735690247131,-500.0,0.00019178,2]
[347325031,1735690247140,-690.12,0.00019178,2]
[347325032,1735690247149,-500.0,0.00019178,2]
[347325033,1735690247158,-915.66,0.00019178,2]
[347325034,1735690247167,-500.0,0.00019178,2]
[347325035,1735690247176,-500.0,0.00019178,2]
[347325036,1735690247185,-885.83,0.00019178,2]
[347325037,1735690247195,-500.0,0.00019178,2]
[347325038,1735690247204,-500.0,0.00019178,2]
[347325039,1735690247213,-500.0,0.00019178,2]
[347325040,1735690247225,-500.0,0.00019178,2]
[347325041,1735690247235,-227.81254684,0.00019178,2]
[347325042,1735690247244,-664.67,0.00019178,2]
[347325043,1735690247253,-100.8616057,0.00019178,2]
[347325046,1735690471379,160.0,0.00024163,120]
[347325048,1735690532476,160.0,0.00023504,120]
[347325051,1735690827975,364.194787,0.00025,120]
[347325052,1735690951423,160.0,0.00024611,120]
[347325053,1735691070819,400.0,0.00013973,2]
[347325054,1735691071358,160.0,0.00023567,120]
[347325065,1735691431339,160.0,0.00024424,120]
[347325088,1735691432079,-4063.80415928,0.00015978,2]
[347325090,1735691432089,-435.99310408,0.00016078,2]
[347325092,1735691432098,-500.0,0.00016934,2]
[347325094,1735691432107,-308.643458,0.00016935,2]
[347325095,1735691432116,-308.643458,0.00016935,2]
[347325096,1735691432125,-151.0,0.00016935,2]
[347325097,1735691432135,-300.0,0.00016999,2]
[347325098,1735691432144,-308.643458,0.00017,2]
[347325099,1735691432153,-308.643458,0.00017,2]
[347325100,1735691432164,-151.0,0.00017,2]
[347325101,1735691432173,-5758.3489117,0.00017,2]
[347325102,1735691432183,-11670.56799864,0.00017103,2]
[347325103,1735691432195,-1100.89151516,0.00017103,2]
[347325104,1735691432211,-656.29837822,0.00017103,2]
[347325105,1735691432222,-3187.93803974,0.00017103,2]
[347325955,1735691446038,-8284.30406824,0.00017103,2]
[347325957,1735691446047,-521.71674304,0.00017446,2]
[347325959,1735691446056,-165.396321,0.00017546,2]
[347325961,1735691446067,-5164.75756255,0.00018,2]
[347325963,1735691446076,-308.643458,0.00018,2]
[347325965,1735691446086,-308.643458,0.00018,2]
[347325967,1735691446094,-151.0,0.00018,2]
[347325969,1735691446103,-352.5613876,0.00018,2]
[347325971,1735691446112,-500.2852049,0.00018,2]
[347325973,1735691446121,-352.5613876,0.00018,2]
[347325975,1735691446130,-3269.07607116,0.00018,2]
[347325977,1735691446139,-352.5613876,0.00018,2]
[347325979,1735691446148,-521.71674297,0.00018157,2]
[347325981,1735691446157,-855.417,0.0001822,2]
[347325983,1735691446167,-352.5613876,0.000183,2]
[347325985,1735691446176,-213.8477522,0.00018411,2]
[347325987,1735691446185,-153.560735,0.00018411,2]
[347325989,1735691446194,-153.560735,0.00018411,2]
[347325991,1735691446203,-153.560735,0.00018411,2]
[347325993,1735691446212,-153.355597,0.00018411,2]
[347325995,1735691446221,-420.0,0.00018567,2]
[347325997,1735691446230,-352.5613876,0.00018685,2]
[347325999,1735691446239,-396.8032639,0.00018685,2]
[347326001,1735691446248,-308.643458,0.000187,2]
[347326002,1735691446257,-308.643458,0.000187,2]
[347326004,1735691446267,-151.0,0.000187,2]
[347326006,1735691446276,-247.0,0.0001873,2]
[347326008,1735691446285,-259.233,0.0001873,2]
[347326010,1735691446294,-521.71674297,0.00018869,2]
[347326012,1735691446303,-14898.13825711,0.00018964,2]
[347326664,1735691464270,151.02484506,0.00015,2]
[347326665,1735691464306,6342.80335678,0.00015,2]
[347326666,1735691464369,6493.82820184,0.00014996,2]
[347326667,1735691464801,6493.82820184,0.00014989,2]
[347326670,1735691610756,160.0,0.0002469,120]
[347326672,1735691790741,160.0,0.00023712,120]
[347326675,1735692016359,387.76,0.00025,120]
[347326680,1735692177581,400.0,0.00013973,2]
[347326685,1735692331269,160.0,0.00022557,120]
[347326722,1735692632337,-500.0,0.00017102,2]
[347326723,1735692632347,-550.52493,0.00017555,2]
[347326724,1735692632356,-176.2058721,0.00017599,2]
[347326725,1735692632366,-300.0,0.00017826,2]
[347326726,1735692632376,-3556.27357634,0.00017827,2]
[347326727,1735692632387,-4142.79044524,0.00017827,2]
[347326728,1735692632399,-17200.93597842,0.00017827,2]
[347326729,1735692632408,-436.229452,0.00018,4]
[347326730,1735692632424,-237.42,0.00018,2]
[347326731,1735692632434,-10331.81400494,0.00018099,5]
[347326732,1735692632444,-840.193,0.0001822,2]
[347326733,1735692632453,-461.0,0.00018884,2]
[347326734,1735692632463,-461.0,0.00018884,2]
[347326735,1735692632473,-461.0,0.00018884,2]
[347326736,1735692632483,-462.05,0.00018884,2]
[347326737,1735692632492,-174.92564556,0.000189,2]
[347326738,1735692632501,-618.0,0.000189,2]
[347326739,1735692632510,-5164.75756255,0.00018906,2]
[347326740,1735692632520,-202.3140027,0.00018944,2]
[347326741,1735692632529,-240.653,0.00018944,2]
[347326742,1735692632539,-237.42,0.00018954,2]
[347326743,1735692632549,-25363.54058021,0.00018964,2]
[347326744,1735692632558,-903.8250963,0.00018986,2]
[347326745,1735692632568,-152.0,0.0001903,2]
[347326746,1735692632578,-505.83464993,0.00019071,2]
[347326747,1735692632588,-599.48035613,0.00019078,2]
[347326748,1735692632598,-350.0,0.000191,2]
[347326749,1735692632607,-281.3521719,0.000191,2]
[347326750,1735692632617,-237.42,0.00019164,2]
[347326751,1735692632627,-22616.67961189,0.00019168,2]
[347326752,1735692632638,-274321.95762009,0.00019168,2]
[347326753,1735692632648,-500.0,0.00019173,2]
[347326754,1735692632658,-513.26550794,0.00019173,2]
[347326755,1735692632671,-500.0,0.00019173,2]
[347326756,1735692632681,-500.0,0.00019173,2]
[347326757,1735692632691,-584.82279517,0.00019177,2]
[347326758,1735692632701,-415.29880114,0.00019177,2]
[347326759,1735692632710,-704.28,0.00019178,2]
[347326760,1735692632719,-500.0,0.00019178,2]
[347326761,1735692632729,-431.13986091,0.00019178,2]
[347326762,1735692632738,-500.0,0.00019178,2]
[347326763,1735692632747,-500.0,0.00019178,2]
[347326764,1735692632757,-500.0,0.00019178,2]
[347326765,1735692632766,-500.0,0.00019178,2]
[347326766,1735692632775,-500.0,0.00019178,2]
[347326767,1735692632785,-500.0,0.00019178,2]
[347326768,1735692632794,-516.07,0.00019178,2]
[347326769,1735692632804,-500.0,0.00019178,2]
[347326770,1735692632814,-514.97506644,0.00019178,2]
[347326771,1735692632823,-227.48740892,0.00019178,2]
[347326772,1735692632833,-151.0,0.00019178,2]
[347326773,1735692632843,-500.0,0.00019178,2]
[347326774,1735692632852,-500.0,0.00019178,2]
[347326775,1735692632862,-151.0,0.00019178,2]
[347326776,1735692632871,-545.05563415,0.00019178,2]
[347326777,1735692632881,-151.0,0.00019178,2]
[347326778,1735692632890,-500.0,0.00019178,2]
[347326779,1735692632899,-500.0,0.00019178,2]
[347326780,1735692632909,-500.0,0.00019178,2]
[347326781,1735692632921,-511.53205255,0.00019178,2]
[347326782,1735692632930,-500.0,0.00019178,2]
[347326783,1735692632939,-551.84,0.00019178,2]
[347326784,1735692632949,-500.0,0.00019178,2]
[347326785,1735692632959,-503.98585372,0.00019178,2]
[347326786,1735692632971,-500.0,0.00019178,2]
[347326787,1735692632982,-151.0,0.00019178,2]
[347326788,1735692632991,-500.0,0.00019178,2]
[347326789,1735692633001,-389.44469775,0.00019178,2]
[347326790,1735692633011,-507.72062285,0.00019178,2]
[347326791,1735692633020,-500.0,0.00019178,2]
[347326792,1735692633029,-500.0,0.00019178,2]
[347326793,1735692633039,-500.0,0.00019178,2]
[347326794,1735692633049,-151.0,0.00019178,2]
[347326795,1735692633059,-500.0,0.00019178,2]
[347326796,1735692633069,-384.83537564,0.00019178,2]
[347326797,1735692633079,-541.82702421,0.00019178,2]
[347326798,1735692633090,-502.44024829,0.00019178,2]
[347326799,1735692633099,-151.0,0.00019178,2]
[347326800,1735692633109,-500.0,0.00019178,2]
[347326801,1735692633118,-500.0,0.00019178,2]
[347326802,1735692633128,-371.58558552,0.00019178,2]
[347326803,1735692633137,-502.11176334,0.00019178,2]
[347326804,1735692633147,-500.0,0.00019178,2]
[347326805,1735692633156,-500.0,0.00019178,2]
[347326806,1735692633168,-500.0,0.00019178,2]
[347326807,1735692633178,-500.0,0.00019178,2]
[347326808,1735692633188,-298.148467,0.00019178,2]
[347326809,1735692633198,-636.98,0.00019178,2]
[347326810,1735692633208,-500.0,0.00019178,2]
[347326811,1735692633217,-298.148467,0.00019178,2]
[347326812,1735692633227,-500.0,0.00019178,2]
[347326813,1735692633237,-500.0,0.00019178,2]
[347326814,1735692633247,-500.0,0.00019178,2]
[347326815,1735692633256,-500.0,0.00019178,2]
[347326816,1735692633266,-500.0,0.00019178,2]
[347326817,1735692633275,-500.0,0.00019178,2]
[347326818,1735692633285,-500.0,0.00019178,2]
[347326819,1735692633295,-710.87,0.00019178,2]
[347326820,1735692633305,-760.62,0.00019178,2]
[347326821,1735692633315,-366.69748089,0.00019178,2]
[347326822,1735692633324,-481.173898,0.00019178,2]
[347326823,1735692633335,-481.173898,0.00019178,2]
[347326824,1735692633344,-511.84026667,0.00019178,2]
[347326825,1735692633354,-481.173898,0.00019178,2]
[347326826,1735692633364,-481.173898,0.00019178,2]
[347326827,1735692633374,-500.72807361,0.00019178,2]
[347326828,1735692633383,-503.47595851,0.00019178,2]
[347326829,1735692633393,-500.0,0.00019178,2]
[347326830,1735692633402,-500.0,0.00019178,2]
[347326831,1735692633411,-500.0,0.00019178,2]
[347326832,1735692633422,-500.0,0.00019178,2]
[347326833,1735692633431,-858.89,0.00019178,2]
[347326834,1735692633441,-500.0,0.00019178,2]
[347326835,1735692633450,-159.95962785,0.00019178,2]
[347326836,1735692633459,-151.0,0.00019178,2]
[347326837,1735692633469,-151.0,0.00019178,2]
[347326838,1735692633479,-500.0,0.00019178,2]
[347326839,1735692633489,-500.0,0.00019178,2]
[347326840,1735692633498,-984.88,0.00019178,2]
[347326841,1735692633508,-500.0,0.00019178,2]
[347326842,1735692633517,-500.0,0.00019178,2]
[347326843,1735692633526,-500.0,0.00019178,2]
[347326844,1735692633535,-602.51,0.00019178,2]
[347326845,1735692633545,-500.0,0.00019178,2]
[347326846,1735692633555,-636.04,0.00019178,2]
[347326847,1735692633564,-500.0,0.00019178,2]
[347326848,1735692633574,-500.0,0.00019178,2]
[347326849,1735692633584,-500.0,0.00019178,2]
[347326850,1735692633593,-500.0,0.00019178,2]
[347326851,1735692633603,-500.0,0.00019178,2]
[347326852,1735692633612,-500.0,0.00019178,2]
[347326853,1735692633622,-150.21,0.00019178,2]
[347326854,1735692633632,-1815.24,0.00019178,2]
[347326855,1735692633641,-150.2,0.00019178,2]
[347326856,1735692633650,-500.0,0.00019178,2]
[347326857,1735692633660,-6538.98,0.00019178,2]
[347326858,1735692633672,-500.0,0.00019178,2]
[347326859,1735692633682,-188.0,0.00019178,2]
[347326860,1735692633693,-415.05724802,0.00019178,2]
[347326861,1735692633702,-500.0,0.00019178,2]
[347326862,1735692633712,-500.0,0.00019178,2]
[347326863,1735692633722,-500.0,0.00019178,2]
[347326864,1735692633733,-730.77,0.00019178,2]
[347326865,1735692633742,-500.0,0.00019178,2]
[347326866,1735692633751,-500.0,0.00019178,2]
[347326867,1735692633760,-500.0,0.00019178,2]
[347326868,1735692633769,-500.0,0.00019178,2]
[347326869,1735692633779,-503.45731696,0.00019178,2]
[347326870,1735692633788,-267.28891495,0.00019178,2]
[347326871,1735692633797,-500.0,0.00019178,2]
[347326872,1735692633806,-500.0,0.00019178,2]
[347326873,1735692633816,-882.45,0.00019178,2]
[347326874,1735692633825,-500.0,0.00019178,2]
[347326875,1735692633834,-501.61156438,0.00019178,2]
[347326876,1735692633843,-416.956299,0.00019178,2]
[347326877,1735692633852,-416.956299,0.00019178,2]
[347326878,1735692633870,-500.0,0.00019178,2]
[347326879,1735692634044,-416.956299,0.00019178,2]
[347326880,1735692634056,-416.956299,0.00019178,2]
[347326881,1735692634066,-679.09,0.00019178,2]
[347326882,1735692634076,-500.0,0.00019178,2]
[347326883,1735692634085,-500.0,0.00019178,2]
[347326884,1735692634095,-500.0,0.00019178,2]
[347326885,1735692634104,-151.0,0.00019178,2]
[347326886,1735692634113,-151.0,0.00019178,2]
[347326887,1735692634123,-161.15996,0.00019178,2]
[347326888,1735692634132,-544.52,0.00019178,2]
[347326889,1735692634141,-500.0,0.00019178,2]
[347326890,1735692634150,-500.0,0.00019178,2]
[347326891,1735692634160,-617.0,0.00019178,2]
[347326892,1735692634171,-500.0,0.00019178,2]
[347326893,1735692634180,-500.0,0.00019178,2]
[347326894,1735692634190,-500.0,0.00019178,2]
[347326895,1735692634199,-500.0,0.00019178,2]
[347326896,1735692634208,-500.0,0.00019178,2]
[347326897,1735692634217,-500.0,0.00019178,2]
[347326898,1735692634226,-500.0,0.00019178,2]
[347326899,1735692634236,-2795.22,0.00019178,2]
[347326900,1735692634245,-1136.971301,0.00019178,2]
[347326901,1735692634254,-185.186074,0.00019178,2]
[347326902,1735692634264,-185.186074,0.00019178,2]
[347326903,1735692634273,-4705.69,0.00019178,2]
[347326904,1735692634282,-500.0,0.00019178,2]
[347326905,1735692634291,-1136.971301,0.00019178,2]
[347326906,1735692634300,-185.186074,0.00019178,2]
[347326907,1735692634310,-185.186074,0.00019178,2]
[347326908,1735692634319,-500.0,0.00019178,2]
[347326909,1735692634328,-151.0,0.00019178,2]
[347326910,1735692634338,-806.11,0.00019178,2]
[347326911,1735692634347,-151.0,0.00019178,2]
[347326912,1735692634356,-691.84,0.00019178,2]
[347326913,1735692634365,-151.0,0.00019178,2]
[347326914,1735692634375,-151.0,0.00019178,2]
[347326915,1735692634384,-500.0,0.00019178,2]
[347326916,1735692634394,-500.0,0.00019178,2]
[347326917,1735692634403,-500.0,0.00019178,2]
[347326918,1735692634413,-500.0,0.00019178,2]
[347326919,1735692634422,-151.0,0.00019178,2]
[347326920,1735692634432,-500.0,0.00019178,2]
[347326921,1735692634441,-500.0,0.00019178,2]
[347326922,1735692634450,-500.0,0.00019178,2]
[347326923,1735692634460,-624.88,0.00019178,2]
[347326924,1735692634470,-1022.65,0.00019178,2]
[347326925,1735692634479,-1425.89,0.00019178,2]
[347326926,1735692634488,-619.039611,0.00019178,2]
[347326927,1735692634497,-619.039611,0.00019178,2]
[347326928,1735692634507,-500.0,0.00019178,2]
[347326929,1735692634515,-151.0,0.00019178,2]
[347326930,1735692634525,-619.039611,0.00019178,2]
[347326931,1735692634534,-619.039611,0.00019178,2]
[347326932,1735692634542,-500.0,0.00019178,2]
[347326933,1735692634552,-609.82039449,0.00019178,2]
[347326934,1735692634560,-500.0,0.00019178,2]
[347326935,1735692634569,-500.0,0.00019178,2]
[347326936,1735692634578,-500.0,0.00019178,2]
[347326937,1735692634588,-500.0,0.00019178,2]
[347326938,1735692634597,-1101.92,0.00019178,2]
[347326939,1735692634606,-500.0,0.00019178,2]
[347326940,1735692634615,-500.0,0.00019178,2]
[347326941,1735692634624,-608.53,0.00019178,2]
[347326942,1735692634633,-500.0,0.00019178,2]
[347326943,1735692634642,-9739.43,0.00019178,2]
[347326944,1735692634651,-500.0,0.00019178,2]
[347326945,1735692634661,-500.0,0.00019178,2]
[347326946,1735692634672,-500.0,0.00019178,2]
[347326947,1735692634681,-151.0,0.00019178,2]
[347326948,1735692634691,-502.74,0.00019178,2]
[347326949,1735692634701,-151.0,0.00019178,2]
[347326950,1735692634710,-500.0,0.00019178,2]
[347326951,1735692634719,-500.0,0.00019178,2]
[347326952,1735692634729,-500.0,0.00019178,2]
[347326953,1735692634739,-184.44495,0.00019178,2]
[347326954,1735692634748,-664.74,0.00019178,2]
[347326955,1735692634757,-184.44495,0.00019178,2]
[347326956,1735692634767,-1629.48,0.00019178,2]
[347326957,1735692634776,-781.81,0.00019178,2]
[347326958,1735692634785,-500.0,0.00019178,2]
[347326959,1735692634795,-500.0,0.00019178,2]
[347326960,1735692634804,-500.0,0.00019178,2]
[347326961,1735692634814,-526.068168,0.00019178,2]
[347326962,1735692634823,-721.84,0.00019178,2]
[347326963,1735692634832,-500.0,0.00019178,2]